bitfinex-derivatives/quotes_ETHF0:USTF0_20260121
["timestamp","ask_amount","ask_price","bid_price","bid_amount"]
[1769039253774,0.14160015,2989.9,2988.4,0.00355007]
[1769039253975,0.81426464,2989.8,2988.4,0.00355007]
[1769039256283,0.81426464,2989.7,2988.4,0.00355007]
[1769039256484,0.81426464,2989.6,2988.4,0.00355007]
[1769039256684,0.81426464,2989.5,2988.4,0.00355007]
[1769039256886,1.31938557,2989.9,2988.4,0.00355007]
[1769039257088,0.80811934,2989.8,2988.4,0.00355007]
[1769039257285,0.80811934,2989.7,2988.4,0.00355007]
[1769039257487,0.80811934,2989.6,2988.4,0.00355007]
[1769039257686,0.80811934,2989.5,2988.4,0.00355007]
[1769039257888,1.31938557,2989.9,2988.4,0.00355007]
[1769039258078,0.80821071,2989.8,2988.4,0.00355007]
[1769039258282,1.98599613,2989.8,2988.4,0.00355007]
[1769039258990,0.80821071,2989.8,2988.4,0.14772956]
[1769039259292,0.80821071,2989.7,2988.4,0.14772956]
[1769039259484,0.80821071,2989.6,2988.4,0.14772956]
[1769039259685,1.17778542,2989.9,2988.4,0.14772956]
[1769039259991,0.80834269,2989.8,2988.5,0.14417949]
[1769039260189,0.80834269,2989.7,2988.5,0.14417949]
[1769039260379,0.80834269,2989.6,2988.5,0.14417949]
[1769039260586,1.17778542,2990.0,2988.5,0.14417949]
[1769039262585,0.80837652,2989.5,2988.4,0.00355007]
[1769039262878,0.14160015,2989.8,2988.4,0.00355007]
[1769039263093,0.80830222,2989.7,2988.4,0.00355007]
[1769039263387,0.80830222,2989.6,2988.4,0.00355007]
[1769039263585,0.80830222,2989.5,2988.4,0.00355007]
[1769039263790,0.14160015,2989.3,2987.9,0.00502336]
[1769039263991,0.14160015,2989.1,2987.9,0.00502336]
[1769039264190,0.14662351,2988.9,2987.3,2.488]
[1769039265087,0.14662351,2988.9,2987.3,2.49153189]
[1769039265487,0.14160015,2988.7,2987.3,0.00353189]
[1769039274399,0.80471585,2988.6,2987.3,0.00353189]
[1769039274600,0.80471585,2988.5,2987.3,0.00353189]
[1769039274793,0.80471585,2988.4,2987.3,0.00353189]
[1769039274994,0.80471585,2988.3,2987.3,0.00353189]
[1769039275306,1.31938557,2988.7,2987.3,0.00353189]
[1769039275500,0.14160015,2988.3,2986.1,0.14417949]
[1769039275806,0.30910015,2987.6,2985.7,0.14417949]
[1769039276010,0.14160015,2987.5,2985.7,0.14417949]
[1769039276507,0.14485835,2987.5,2985.7,0.14660882]
[1769039276705,0.00502336,2986.9,2985.7,0.00242933]
[1769039278499,0.00502336,2986.9,2984.6,0.14417949]
[1769039278500,0.13901234,2986.8,2984.6,0.14417949]
[1769039279600,0.13901234,2986.8,2984.6,0.14746633]
[1769039280398,0.13901234,2986.8,2984.6,2.00846633]
[1769039281005,0.13901234,2986.8,2984.7,0.14476942]
[1769039281204,0.00502336,2986.9,2984.8,0.15152543]
[1769039281900,0.00502336,2986.9,2984.8,0.31917543]
[1769039282206,0.00502336,2986.9,2985.0,0.15152543]
[1769039283101,0.00502336,2986.9,2985.2,0.15152543]
[1769039283307,0.00502336,2986.9,2985.3,0.15152543]
[1769039285806,0.00502336,2986.9,2985.5,0.15152543]
[1769039286006,0.00502336,2986.9,2985.5,0.31913543]
[1769039286212,0.00502336,2986.9,2985.6,0.15152543]
[1769039287011,0.00502336,2986.9,2985.6,0.31913543]
[1769039287210,0.00502336,2986.9,2985.7,0.31912543]
[1769039287505,0.00502336,2986.9,2985.8,0.15152543]
[1769039287906,0.00502336,2986.9,2985.6,2.042]
[1769039288410,0.00502336,2986.9,2985.7,0.15152543]
[1769039289907,0.00502336,2986.9,2985.7,2.60752543]
[1769039290104,0.00502336,2986.9,2985.7,0.15152543]
[1769039292808,0.0032582,2987.5,2985.7,0.15152543]
[1769039293013,0.0032582,2987.5,2986.1,0.15152543]
[1769039294416,0.14711655,2987.5,2986.0,0.00502336]
[1769039294617,0.14349886,2986.5,2984.6,0.00328684]
[1769039294813,0.14349886,2986.4,2984.6,0.00328684]
[1769039295214,1.41434151,2986.9,2984.6,0.00328684]
[1769039295215,0.14349886,2986.8,2984.6,0.15481227]
[1769039295410,0.14349886,2986.5,2984.6,0.15481227]
[1769039295615,0.31102012,2986.3,2984.6,0.00328684]
[1769039295815,0.14345012,2986.2,2984.6,0.00328684]
[1769039299920,6.62045012,2986.2,2984.6,0.00328684]
[1769039305026,6.62045012,2986.2,2984.6,0.15481227]
[1769039305225,6.477,2986.2,2984.8,0.15152543]
[1769039305731,0.31141835,2986.5,2984.8,2.54413462]
[1769039305924,0.14385835,2986.3,2984.8,2.39260919]
[1769039306124,0.14385835,2986.3,2984.6,2.39589603]
[1769039306320,0.14385835,2986.1,2984.6,0.00328684]
[1769039306724,0.31143835,2986.1,2984.6,0.00328684]
[1769039309133,0.14385835,2986.0,2984.6,0.00328684]
[1769039311536,0.30664083,2985.9,2984.6,0.00328684]
[1769039311833,0.13905083,2985.8,2984.6,0.00328684]
[1769039312331,0.30665083,2985.8,2984.6,0.00328684]
[1769039312540,0.13905083,2985.3,2983.8,2.39260919]
[1769039312837,0.30668083,2985.3,2983.8,2.39260919]
[1769039313135,0.16767,2984.5,2983.7,2.39260919]
[1769039313329,0.16767,2984.5,2983.6,2.39260919]
[1769039313530,0.17079022,2984.5,2983.6,0.0033913]
[1769039313736,0.16768,2984.4,2983.4,2.39260919]
[1769039313928,0.16768,2984.3,2983.4,2.39260919]
[1769039314534,0.14217105,2984.5,2983.3,2.25275939]
[1769039314535,0.1677,2984.0,2983.3,2.25275939]
[1769039314731,0.14217105,2984.5,2983.3,0.00295264]
[1769039314732,0.1677,2983.9,2983.3,0.00295264]
[1769039315234,0.16771,2983.8,2983.3,0.00295264]
[1769039315430,0.00502336,2983.9,2982.7,2.99366608]
[1769039315624,0.00502336,2983.9,2982.3,4.19144631]
[1769039315625,0.16776,2982.9,2982.3,4.19144631]
[1769039315824,0.16776,2982.9,2981.4,0.14412445]
[1769039315825,1.41434151,2983.7,2981.6,4.21148861]
[1769039316128,0.16775,2983.1,2981.6,0.14412445]
[1769039316538,1.41434151,2983.7,2981.6,0.14714304]
[1769039316735,1.41434151,2983.7,2980.9,0.16787]
[1769039316736,0.16781,2982.1,2980.7,5.98879322]
[1769039317236,0.16781,2982.1,2980.6,0.14412445]
[1769039317433,0.16777,2982.8,2981.3,0.14412445]
[1769039317737,1.41434151,2983.8,2980.0,5.98879322]
[1769039317738,1.41434151,2983.3,2980.7,2.448]
[1769039317942,0.00252748,2983.3,2980.8,0.14412445]
[1769039318342,0.00252748,2983.3,2980.9,0.14412445]
[1769039319237,0.16778,2982.5,2980.9,0.14412445]
[1769039319431,0.16779,2982.4,2980.9,0.14412445]
[1769039319634,0.1678,2982.3,2980.9,2.59112445]
[1769039320036,0.1678,2982.3,2981.0,6.00121316]
[1769039320741,0.1678,2982.2,2980.9,0.14412445]
[1769039320939,0.16781,2982.1,2980.9,0.14412445]
[1769039321243,0.16781,2982.0,2980.9,0.14412445]
[1769039321643,0.16781,2982.0,2980.9,6.14533761]
[1769039321843,0.16781,2982.0,2981.2,0.00502336]
[1769039322746,0.16781,2982.0,2981.3,6.00121316]
[1769039323044,0.16781,2982.0,2981.2,0.00502336]
[1769039323439,0.16781,2982.0,2981.2,0.14914781]
[1769039323644,0.00252748,2983.3,2981.2,0.14914781]
[1769039323843,0.16778,2982.6,2981.3,0.14412445]
[1769039325040,0.16778,2982.6,2981.5,0.14412445]
[1769039325341,0.00252748,2983.3,2981.6,6.14533761]
[1769039325546,0.16774,2983.2,2981.6,0.14412445]
[1769039325746,0.16774,2983.2,2981.7,0.14412445]
[1769039325948,0.16774,2983.2,2981.8,0.14412445]
[1769039326843,0.16774,2983.2,2981.9,0.14412445]
[1769039327243,0.16774,2983.2,2981.9,6.14533761]
[1769039327544,0.16774,2983.2,2981.9,8.59333761]
[1769039328542,0.00252748,2983.3,2982.0,6.14533761]
[1769039328943,0.00252748,2983.3,2982.1,0.14412445]
[1769039329545,0.00252748,2983.3,2981.6,0.14412445]
[1769039329742,0.05802917,2983.1,2981.2,0.00502336]
[1769039329946,0.16778,2982.5,2981.2,0.00502336]
[1769039330138,0.1678,2982.2,2981.2,0.00502336]
[1769039333339,0.05802917,2982.7,2981.2,0.00502336]
[1769039333643,0.16781,2982.1,2981.2,0.00502336]
[1769039334640,0.16781,2982.0,2981.2,0.00502336]
[1769039335244,0.16781,2982.0,2980.6,2.59012445]
[1769039335245,0.08299506,2981.9,2980.0,0.14412445]
[1769039335441,0.0779717,2980.3,2978.7,2.39239451]
[1769039335635,0.08288844,2980.9,2978.8,0.14412445]
[1769039335839,0.16789,2980.5,2978.8,0.14412445]
[1769039336039,0.16787,2981.0,2979.0,0.14412445]
[1769039336232,0.16783,2981.8,2979.5,0.14412445]
[1769039336438,0.16784,2981.5,2979.7,0.14412445]
[1769039336642,0.00347278,2981.8,2980.0,0.14412445]
[1769039336843,0.00347278,2981.8,2980.4,0.14412445]
[1769039337046,0.00347278,2981.8,2980.5,0.14412445]
[1769039337349,0.00347278,2981.8,2980.6,0.14412445]
[1769039337542,0.00347278,2981.8,2980.6,6.14884252]
[1769039337944,0.00347278,2981.8,2980.3,0.00503203]
[1769039338244,0.16785,2981.3,2980.3,0.00503203]
[1769039338443,0.00347278,2981.8,2980.4,0.14412445]
[1769039338749,0.16784,2981.5,2980.4,6.14884252]
[1769039338946,0.16784,2981.5,2980.3,0.00503203]
[1769039339245,0.16786,2981.2,2980.3,0.00503203]
[1769039340847,0.16783,2981.7,2980.5,6.00471807]
[1769039341045,0.16783,2981.7,2980.3,0.19506782]
[1769039341750,0.16784,2981.4,2980.3,0.00503203]
[1769039343648,0.16791,2980.2,2979.5,0.0036813]
[1769039343855,0.16791,2980.2,2978.7,0.1892251]
[1769039344044,0.12428441,2980.9,2978.8,6.00471807]
[1769039344241,0.12428441,2980.9,2978.7,0.1892251]
[1769039344749,0.12927877,2980.6,2978.5,2.99049386]
[1769039345049,0.12583215,2979.9,2977.7,3.17971896]
[1769039345250,0.12583215,2979.9,2977.8,3.17971896]
[1769039345448,0.12583215,2979.8,2977.8,3.17971896]
[1769039345754,0.16797,2979.1,2978.5,0.00503203]
[1769039346049,0.175511,2979.1,2977.8,0.19344691]
[1769039346251,0.16799,2978.9,2977.8,0.00422181]
[1769039346651,0.16799,2978.8,2977.8,0.00422181]
[1769039347148,0.16799,2978.8,2978.0,10.19240824]
[1769039347362,0.12545312,2978.7,2977.5,2.99049386]
[1769039347552,0.16804,2977.9,2976.2,0.1892251]
[1769039347747,0.168,2978.7,2976.7,0.1892251]
[1769039347949,0.00443777,2979.0,2976.7,0.1892251]
[1769039348558,0.00503203,2978.1,2976.7,0.19280861]
[1769039348950,0.00503203,2978.1,2976.7,0.00358351]
[1769039348951,0.16804,2977.9,2976.7,0.00358351]
[1769039349147,0.00685049,2977.8,2975.4,5.59921322]
[1769039349360,0.1681,2976.9,2975.0,0.1892251]
[1769039349652,0.00503203,2978.1,2975.8,0.1892251]
[1769039349952,0.16803,2978.2,2975.9,12.55937763]
[1769039350146,0.17099211,2978.2,2976.0,0.1892251]
[1769039350356,0.17099211,2978.2,2976.6,0.1892251]
[1769039350549,0.17099211,2978.2,2977.0,0.1892251]
[1769039350550,0.00296211,2978.2,2977.0,0.1892251]
[1769039350745,0.00296211,2978.2,2977.1,0.1892251]
[1769039351061,0.16799,2978.9,2977.6,12.55937763]
[1769039351255,0.16799,2978.8,2977.1,0.1892251]
[1769039351555,0.16804,2978.0,2976.5,2.0552251]
[1769039351751,0.16804,2977.9,2976.5,2.0552251]
[1769039352055,0.17050473,2977.9,2976.6,0.1892251]
[1769039352253,0.17050473,2977.9,2977.0,12.55937763]
[1769039352454,0.16806,2977.5,2976.0,0.1892251]
[1769039352654,0.16806,2977.5,2976.1,12.74860273]
[1769039352850,0.16806,2977.5,2976.1,0.1892251]
[1769039353048,0.00246473,2977.9,2976.9,12.55937763]
[1769039353250,0.00246473,2977.9,2975.9,0.00380061]
[1769039353251,0.00246473,2977.9,2976.7,12.55937763]
[1769039353556,0.00246473,2977.9,2976.8,12.55937763]
[1769039353754,0.00246473,2977.9,2977.2,12.55937763]
[1769039353951,0.16802,2978.2,2977.2,12.55937763]
[1769039354155,0.16802,2978.2,2977.3,12.55937763]
[1769039354355,0.16802,2978.2,2977.0,12.55937763]
[1769039355057,0.17221561,2978.2,2977.2,12.55937763]
[1769039355258,0.17221561,2978.2,2977.0,12.55937763]
[1769039355460,0.17221561,2978.2,2976.7,0.1892251]
[1769039355756,0.17221561,2978.2,2977.1,12.55937763]
[1769039356246,0.17221561,2978.2,2976.7,0.1892251]
[1769039356449,0.00419561,2978.2,2976.8,0.1892251]
[1769039356653,0.00419561,2978.2,2977.5,12.55937763]
[1769039356854,0.00419561,2978.2,2976.8,0.1892251]
[1769039356855,0.16799,2978.9,2977.3,0.1892251]
[1769039357159,0.16799,2978.9,2977.6,12.74860273]
[1769039357361,0.17212215,2979.8,2977.7,2.0562251]
[1769039357554,0.16796,2979.3,2977.7,2.0562251]
[1769039357855,0.16797,2979.1,2977.7,15.24860273]
[1769039358051,0.16797,2979.1,2978.0,12.55937763]
[1769039358253,0.19353483,2979.3,2978.0,0.00364189]
[1769039358661,0.16803,2978.1,2976.5,0.1892251]
[1769039358858,0.16803,2978.1,2975.8,0.16816]
[1769039358859,0.1901768,2978.7,2976.0,2.501]
[1769039359165,0.16804,2978.0,2976.1,0.1892251]
[1769039359360,0.16804,2978.0,2976.3,0.1892251]
[1769039359661,0.16804,2978.0,2976.7,12.55937763]
[1769039359970,0.16804,2978.0,2976.3,0.19236197]
[1769039360258,0.16804,2978.0,2976.7,12.55937763]
[1769039360456,0.16804,2978.0,2976.5,12.55937763]
[1769039360961,0.16804,2978.0,2976.6,12.55937763]
[1769039361163,0.16804,2978.0,2976.5,12.55937763]
[1769039361455,0.16804,2978.0,2976.6,12.55937763]
[1769039361658,0.16804,2978.0,2977.0,12.55937763]
[1769039361857,0.1901768,2978.9,2976.4,0.1892251]
[1769039362056,0.16801,2978.6,2976.7,0.1892251]
[1769039362450,0.16801,2978.6,2976.9,12.55937763]
[1769039362650,0.16801,2978.6,2976.7,0.1892251]
[1769039362855,0.16801,2978.6,2977.2,12.55937763]
[1769039363252,0.16801,2978.6,2977.4,12.55937763]
[1769039363455,0.16801,2978.6,2977.2,12.55937763]
[1769039363664,0.16801,2978.6,2976.8,0.1892251]
[1769039364062,0.16801,2978.6,2977.3,12.55937763]
[1769039364469,0.16801,2978.6,2977.5,12.55937763]
[1769039364667,0.16797,2979.2,2977.4,12.55937763]
[1769039364870,0.51706598,2979.1,2977.3,15.26260273]
[1769039365165,0.51706598,2979.0,2977.6,12.55937763]
[1769039365366,0.16797,2979.2,2977.6,12.55937763]
[1769039365566,0.51737235,2979.1,2977.7,12.55937763]
[1769039365760,0.00335803,2979.3,2977.6,0.3572851]
[1769039365958,0.16797,2979.2,2977.9,12.55937763]
[1769039366167,0.16797,2979.2,2978.0,2.029]
[1769039366366,0.51682978,2979.1,2978.1,12.55937763]
[1769039366564,0.16797,2979.2,2978.2,12.55937763]
[1769039366760,0.5168276,2979.1,2978.2,12.55937763]
[1769039366962,0.1901768,2978.7,2976.7,4.185479]
[1769039367161,0.16805,2977.8,2976.5,2.519]
[1769039368654,0.1901768,2978.3,2976.3,4.18861587]
[1769039368854,0.16806,2977.6,2976.4,2.517]
[1769039369862,0.16807,2977.5,2976.3,0.00313687]
[1769039370064,0.16808,2977.3,2976.3,0.00313687]
[1769039370270,0.1901768,2978.7,2976.3,0.19236197]
[1769039370466,0.16806,2977.5,2976.3,4.18861587]
[1769039370663,0.16806,2977.5,2976.4,2.517]
[1769039371064,0.16806,2977.5,2976.3,4.18861587]
[1769039371262,0.16806,2977.5,2976.3,4.60549307]
[1769039371573,0.16804,2978.0,2976.7,4.6023562]
[1769039372070,0.51326226,2977.9,2976.8,4.6023562]
[1769039372268,0.16804,2978.0,2976.9,2.52]
[1769039372464,0.51318526,2977.9,2976.9,2.52]
[1769039372665,0.51318526,2977.8,2977.0,2.52]
[1769039372864,0.51318526,2977.7,2977.0,2.52]
[1769039373065,0.16801,2978.5,2977.0,2.52]
[1769039374368,0.16801,2978.5,2977.0,6.705479]
[1769039374773,0.16801,2978.5,2977.0,2.52]
[1769039375075,0.16801,2978.5,2977.5,0.00503203]
[1769039376369,0.16801,2978.5,2976.8,4.6023562]
[1769039376370,0.44402399,2978.3,2976.8,4.185479]
[1769039376670,0.16803,2978.2,2976.8,4.185479]
[1769039376870,0.16803,2978.2,2976.7,6.705479]
[1769039377076,0.16803,2978.2,2976.7,4.185479]
[1769039377375,0.16803,2978.2,2976.8,4.185479]
[1769039380281,0.16804,2978.0,2976.8,4.185479]
[1769039381278,0.16804,2977.9,2976.8,4.185479]
[1769039381674,0.16804,2977.9,2976.9,4.185479]
[1769039382573,0.16805,2977.8,2977.0,0.00503203]
[1769039382772,0.16805,2977.8,2976.9,4.185479]
[1769039382975,0.16806,2977.6,2977.0,0.00503203]
[1769039383275,0.44905602,2978.3,2976.9,4.00634441]
[1769039383476,0.16813,2976.3,2975.4,0.4168772]
[1769039383665,0.44402399,2977.0,2975.6,17.78179211]
[1769039383867,0.16812,2976.5,2975.2,0.4168772]
[1769039384068,0.16812,2976.5,2975.3,2.528]
[1769039384274,0.16812,2976.5,2975.4,9.99636092]
[1769039384471,0.17186854,2976.5,2975.6,0.00504058]
[1769039385269,0.00374854,2976.5,2973.9,21.97653279]
[1769039385476,0.01510492,2976.4,2973.9,12.52994635]
[1769039385778,0.16821,2974.9,2974.7,6.91319582]
[1769039385969,0.16823,2974.5,2973.9,9.58206915]
[1769039386174,0.16823,2974.6,2973.0,2.536]
[1769039386375,0.16823,2974.6,2973.1,0.4168772]
[1769039386571,0.16823,2974.6,2973.1,18.67498253]
[1769039386769,0.03134618,2975.4,2973.1,0.4168772]
[1769039386971,0.1682,2975.1,2973.3,18.67498253]
[1769039387172,0.1682,2975.1,2973.4,0.4168772]
[1769039387475,0.1682,2975.1,2973.6,18.67498253]
[1769039387669,0.1682,2975.1,2973.6,0.4168772]
[1769039387876,0.16816,2975.9,2974.3,18.25810533]
[1769039388074,0.16816,2975.9,2974.4,0.4168772]
[1769039388374,0.16816,2975.9,2974.5,20.80110533]
[1769039388772,0.16816,2975.9,2974.6,18.25810533]
[1769039389071,0.00374854,2976.5,2974.6,18.25810533]
[1769039389072,0.00374854,2976.5,2974.6,0.4168772]
[1769039389271,0.00374854,2976.5,2975.1,0.4168772]
[1769039389471,0.00374854,2976.5,2975.4,18.25810533]
[1769039389671,0.00374854,2976.5,2975.5,20.80610533]
[1769039389872,0.19004311,2977.6,2975.5,21.22298253]
[1769039390072,0.16809,2977.1,2975.5,2.9648772]
[1769039390372,0.50473093,2977.0,2975.6,1.868]
[1769039390573,0.50482289,2976.9,2975.6,1.868]
[1769039390772,0.16811,2976.7,2975.5,0.4168772]
[1769039390973,0.16811,2976.7,2975.6,2.552]
[1769039391581,0.00305037,2976.9,2975.1,0.00272135]
[1769039391582,0.1768358,2976.9,2975.1,0.00272135]
[1769039391877,0.17378543,2976.7,2975.1,0.00272135]
[1769039392081,0.17378543,2976.5,2975.1,0.00272135]
[1769039392270,0.17378543,2976.3,2975.1,0.00272135]
[1769039392671,0.16816,2975.8,2975.1,0.00272135]
[1769039392868,0.17378543,2976.3,2975.4,0.00504058]
[1769039393977,0.16813,2976.4,2975.4,0.00504058]
[1769039394180,0.00305037,2976.9,2975.4,18.26314591]
[1769039394385,0.14082614,2976.7,2975.4,0.00504058]
[1769039394686,0.16811,2976.7,2975.4,0.00504058]
[1769039395980,0.16813,2976.3,2975.4,0.00504058]
[1769039397383,0.16814,2976.2,2975.4,0.00504058]
[1769039397977,0.16814,2976.2,2975.6,18.25810533]
[1769039398182,0.12157006,2976.9,2975.6,18.25810533]
[1769039398377,0.12157006,2976.9,2975.4,0.00504058]
[1769039398573,0.16814,2976.2,2975.4,0.00504058]
[1769039398985,0.16814,2976.2,2975.6,18.25810533]
[1769039399182,0.12157006,2976.9,2975.7,18.25810533]
[1769039399482,0.12157006,2976.9,2975.4,0.00504058]
[1769039399685,0.16816,2975.8,2975.1,0.00272135]
[1769039399880,0.16817,2975.7,2975.1,0.00272135]
[1769039400083,0.16821,2974.9,2974.4,9.64027917]
[1769039400592,0.05846329,2976.0,2974.4,9.64027917]
[1769039400785,0.16819,2975.3,2974.4,9.64027917]
[1769039400987,0.00504058,2974.9,2974.4,9.29252864]
[1769039401191,0.16823,2974.5,2973.2,0.58671516]
[1769039401394,0.16823,2974.5,2973.4,18.25810533]
[1769039401595,0.16824,2974.4,2973.7,18.25810533]
[1769039401785,0.16824,2974.4,2973.5,18.25810533]
[1769039401986,0.00504058,2974.9,2973.2,0.58671516]
[1769039402188,0.16821,2975.0,2974.1,18.25810533]
[1769039402388,0.16821,2975.0,2973.9,0.58671516]
[1769039402590,0.16818,2975.6,2973.9,0.58671516]
[1769039402794,0.16818,2975.6,2974.2,0.58671516]
[1769039402995,0.16818,2975.6,2974.4,18.25810533]
[1769039403288,0.16818,2975.6,2974.2,0.58671516]
[1769039403289,0.00285197,2975.6,2974.8,18.25810533]
[1769039403487,0.18579133,2976.8,2975.5,18.25810533]
[1769039403488,0.1681,2976.8,2975.5,18.25810533]
[1769039403688,0.16811,2976.7,2975.4,0.58671516]
[1769039404089,0.16811,2976.7,2975.7,18.25810533]
[1769039404291,0.16811,2976.7,2975.8,18.25810533]
[1769039404595,0.17065728,2976.7,2975.8,18.26218846]
[1769039404898,0.17065728,2976.7,2976.0,18.25810533]
[1769039405195,0.1886433,2977.9,2976.0,18.25810533]
[1769039405393,0.16811,2976.7,2975.8,0.00408313]
[1769039405691,0.16808,2977.3,2976.3,18.25810533]
[1769039405889,0.1681,2976.9,2976.0,0.00504058]
[1769039406090,0.17056833,2976.9,2976.0,0.00504058]
[1769039406384,0.00246833,2976.9,2976.0,18.26314591]
[1769039406591,0.00246833,2976.9,2976.0,0.00504058]
[1769039406897,0.16811,2976.7,2976.0,0.00504058]
[1769039407289,0.16811,2976.7,2976.0,18.26314591]
[1769039407588,0.16811,2976.7,2976.1,18.25810533]
[1769039407794,0.16813,2976.4,2976.1,18.25810533]
[1769039407994,0.00246833,2976.9,2976.3,18.25810533]
[1769039408190,0.16813,2976.4,2976.0,0.00504058]
[1769039408599,0.16814,2976.2,2976.1,0.56488096]
[1769039408801,0.16817,2975.7,2974.0,0.58671516]
[1769039409095,0.16818,2975.5,2974.1,2.592]
[1769039409289,0.16818,2975.5,2974.0,0.58671516]
[1769039409290,0.16819,2975.3,2974.0,0.58671516]
[1769039409490,0.16819,2975.2,2974.0,0.58671516]
[1769039409791,0.16819,2975.2,2974.0,0.82616679]
[1769039409986,0.30968744,2976.8,2974.7,0.23627357]
[1769039410187,0.17325058,2974.9,2974.1,2.45571516]
[1769039410394,0.16817,2975.6,2974.6,0.23627357]
[1769039410598,0.16817,2975.6,2974.2,0.23627357]
[1769039410792,0.16817,2975.6,2974.5,0.23627357]
[1769039411189,0.16817,2975.6,2974.6,0.23627357]
[1769039411389,0.28573691,2976.7,2974.5,0.58671516]
[1769039411797,0.16815,2976.0,2974.8,0.58671516]
[1769039412001,0.00246833,2976.9,2974.8,0.58671516]
[1769039412297,0.16815,2976.0,2974.8,0.58671516]
[1769039412597,0.16815,2976.0,2975.1,0.00504058]
[1769039412799,0.16815,2976.0,2975.4,0.23627357]
[1769039412999,0.16815,2976.0,2975.6,0.23627357]
[1769039413494,0.5995912,2976.8,2975.1,0.00504058]
[1769039413796,0.35282918,2976.7,2975.1,0.00504058]
[1769039414197,0.16815,2976.0,2975.1,0.00504058]
[1769039414897,0.16817,2975.6,2975.1,0.00504058]
[1769039415694,0.00246833,2976.9,2975.1,0.00504058]
[1769039415892,0.16814,2976.1,2975.1,0.00504058]
[1769039416594,0.16815,2976.0,2975.1,0.00504058]
[1769039416991,0.16811,2976.7,2975.1,0.00504058]
[1769039417190,0.16811,2976.7,2975.1,0.59175574]
[1769039417996,0.16813,2976.3,2975.1,0.59175574]
[1769039418603,0.00246833,2976.9,2975.1,0.59175574]
[1769039420197,0.00246833,2976.9,2975.3,0.58671516]
[1769039420397,0.16806,2977.7,2975.3,0.58671516]
[1769039421196,0.16806,2977.6,2975.3,0.58671516]
[1769039421401,0.1720194,2977.6,2975.3,0.58671516]
[1769039421909,0.0039594,2977.6,2975.7,1.42558964]
[1769039422197,0.0039594,2977.6,2975.9,0.58671516]
[1769039422507,0.0039594,2977.6,2976.1,0.58671516]
[1769039422800,0.0039594,2977.6,2976.1,0.59077165]
[1769039423602,0.473603,2977.5,2976.1,0.59077165]
[1769039423799,0.0039594,2977.6,2976.1,0.59077165]
[1769039424000,0.47359956,2977.5,2976.1,0.59077165]
[1769039424197,0.0039594,2977.6,2976.1,0.59077165]
[1769039424995,0.0039594,2977.6,2976.1,0.00405649]
[1769039424996,0.47357415,2977.5,2976.1,0.00405649]
[1769039425201,0.0039594,2977.6,2976.1,0.00405649]
[1769039425401,0.47356026,2977.5,2976.1,0.00405649]
[1769039425704,0.16809,2977.1,2976.1,0.00405649]
[1769039425907,0.1681,2976.9,2976.1,0.00405649]
[1769039427095,0.87868565,2976.6,2976.1,0.00405649]
[1769039427301,1.17949742,2976.5,2976.1,0.00405649]
[1769039427502,1.17949742,2976.4,2975.1,0.59175574]
[1769039427703,0.87868565,2976.7,2975.1,0.59175574]
[1769039428206,2.0563557,2976.7,2975.1,0.59175574]
[1769039428408,1.17767005,2976.6,2975.1,0.59521564]
[1769039428603,1.17767005,2976.5,2975.1,0.59521564]
[1769039428802,0.87868565,2976.8,2975.1,0.59521564]
[1769039429005,1.17646012,2976.7,2975.1,0.59521564]
[1769039429201,1.17646012,2976.6,2975.1,0.59521564]
[1769039429514,1.17646012,2976.5,2975.1,0.59521564]
[1769039429714,1.17646012,2976.4,2975.1,0.59521564]
[1769039430012,0.16812,2976.6,2975.1,0.00850048]
[1769039430211,1.17040634,2976.5,2975.1,0.00850048]
[1769039430411,1.17040634,2976.4,2975.1,0.00850048]
[1769039430607,1.33853634,2976.3,2975.1,0.00850048]
[1769039430911,0.16817,2975.8,2974.1,0.58671516]
[1769039431306,0.16817,2975.7,2974.1,0.58671516]
[1769039431901,0.16819,2975.3,2974.1,0.00412922]
[1769039432211,0.1682,2975.2,2974.1,0.00412922]
[1769039433907,0.16821,2975.0,2974.1,0.00412922]
[1769039434106,0.5983164,2974.9,2973.0,0.62245258]
[1769039434306,0.16824,2974.4,2972.5,0.62245258]
[1769039434512,0.00427445,2975.3,2973.2,0.62245258]
[1769039434811,0.1682,2975.1,2973.2,0.62245258]
[1769039435006,0.1682,2975.1,2973.2,0.62749316]
[1769039435214,0.00427445,2975.3,2973.2,0.63099329]
[1769039436410,0.00427445,2975.3,2973.7,0.62245258]
[1769039439813,0.87868565,2976.0,2974.2,0.62245258]
[1769039440016,1.16216271,2975.9,2974.2,0.62245258]
[1769039440214,1.16216271,2975.8,2974.2,0.62245258]
[1769039440416,1.34591542,2976.3,2974.2,0.62245258]
[1769039440417,0.87868565,2976.2,2974.2,0.62245258]
[1769039440718,1.16189147,2976.1,2974.3,0.62245258]
[1769039440912,1.16189147,2976.0,2974.3,0.62245258]
[1769039441713,0.7665064,2975.3,2973.2,0.00350013]
[1769039442018,0.5983164,2975.1,2973.2,0.00350013]
[1769039442222,0.5983164,2975.1,2973.2,0.62595271]
[1769039443114,0.00504058,2975.4,2973.2,0.62595271]
[1769039443511,1.75935602,2975.3,2973.3,1.869]
[1769039443813,0.5983164,2975.3,2973.3,2.49145258]
[1769039444014,0.5983164,2975.3,2973.4,0.62245258]
[1769039444212,0.00504058,2975.4,2973.4,0.62245258]
[1769039444417,0.00504058,2975.4,2973.5,0.62245258]
[1769039446409,0.5983164,2975.2,2973.5,0.62245258]
[1769039447021,0.5983164,2974.7,2973.2,0.00350013]
[1769039448015,0.5983164,2975.2,2973.2,0.62595271]
[1769039448320,1.16036011,2975.1,2973.2,0.62595271]
[1769039448516,1.16036011,2975.0,2973.2,0.62595271]
[1769039448716,0.5983164,2975.2,2973.2,0.62595271]
[1769039448920,1.16032778,2975.1,2973.2,0.62595271]
[1769039449123,1.16032778,2975.0,2973.2,0.62595271]
[1769039449318,0.5983164,2975.2,2973.2,0.62595271]
[1769039449617,1.16041985,2975.1,2973.2,0.62595271]
[1769039449817,1.16041985,2975.0,2973.3,1.869]
[1769039450017,0.5983164,2975.2,2973.3,1.869]
[1769039450212,1.16042352,2975.1,2973.4,0.62245258]
[1769039450425,0.00504058,2975.4,2973.4,0.62245258]
[1769039450621,1.16091613,2975.3,2973.4,0.62245258]
[1769039450817,1.16091613,2975.2,2973.5,0.62245258]
[1769039451022,0.00504058,2975.4,2973.9,0.62245258]
[1769039451320,0.87868565,2975.9,2973.9,0.62245258]
[1769039451321,0.87868565,2975.9,2974.2,0.16825]
[1769039451524,0.88200701,2976.1,2974.7,0.62245258]
[1769039451824,0.5983164,2977.2,2974.4,1.43063022]
[1769039451825,0.87116676,2976.2,2974.4,1.43063022]
[1769039452024,0.5983164,2977.2,2974.4,1.43063022]
[1769039452025,1.74606775,2976.8,2974.4,1.43063022]